bitfinex/quotes_BTCUSD_20241211
["timestamp","ask_amount","ask_price","bid_price","bid_amount"]
[1733937899877,0.64659507,100710.0,100700.0,0.00808192]
[1733937900124,0.66641363,100710.0,100700.0,0.00808192]
[1733937900754,0.66641561,100710.0,100700.0,0.00808192]
[1733937900968,0.71103367,100710.0,100700.0,0.00808192]
[1733937904000,0.71116595,100710.0,100700.0,0.00808192]
[1733937905087,0.70316595,100710.0,100700.0,0.00708192]
[1733937905319,0.71116595,100710.0,100700.0,0.00808192]
[1733937905528,0.71411613,100710.0,100700.0,0.00808192]
[1733937907454,0.70611613,100710.0,100700.0,0.00708192]
[1733937907658,0.71411613,100710.0,100700.0,0.00756114]
[1733937908157,0.71411613,100710.0,100700.0,0.00656114]
[1733937908362,0.72211613,100710.0,100700.0,0.00756114]
[1733937908571,0.70611613,100710.0,100680.0,0.5027669]
[1733937908786,0.70628123,100710.0,100700.0,0.00686368]
[1733937909021,0.54435522,100710.0,100700.0,0.00686368]
[1733937909227,0.67824291,100710.0,100700.0,0.00686368]
[1733937909437,0.76749892,100710.0,100700.0,0.00686368]
[1733937909864,0.67824291,100710.0,100700.0,0.00686368]
[1733937910084,0.87683291,100710.0,100700.0,0.00686368]
[1733937910307,0.86883291,100710.0,100680.0,0.7410091]
[1733937910516,0.86883291,100710.0,100700.0,0.00686368]
[1733937910724,0.73894522,100710.0,100690.0,0.00690411]
[1733937910932,0.86881828,100710.0,100700.0,0.00686368]
[1733937911342,0.67822828,100710.0,100700.0,0.001]
[1733937911549,0.67822828,100710.0,100700.0,0.00786368]
[1733937911765,0.67822828,100710.0,100700.0,0.001]
[1733937911976,0.198611,100700.0,100680.0,0.2200058]
[1733937912228,0.3881889,100690.0,100680.0,0.5065557]
[1733937912465,0.3881889,100690.0,100680.0,0.48539407]
[1733937912466,1.06568004,100690.0,100680.0,0.48539407]
[1733937912717,1.12718917,100690.0,100680.0,0.38421358]
[1733937912943,1.00005603,100690.0,100680.0,0.10701716]
[1733937913154,0.73234851,100690.0,100680.0,0.10701716]
[1733937913377,0.99952919,100690.0,100680.0,0.10701716]
[1733937913587,0.75070511,100690.0,100680.0,0.10701716]
[1733937913796,0.92885586,100690.0,100680.0,0.11201716]
[1733937914021,1.06486692,100690.0,100680.0,0.11201716]
[1733937914263,1.23887438,100690.0,100680.0,0.10701716]
[1733937914483,1.11431626,100690.0,100680.0,0.10801716]
[1733937914705,1.23887517,100690.0,100680.0,0.10701716]
[1733937914920,0.198649,100680.0,100670.0,0.00030098]
[1733937915131,0.52156635,100680.0,100670.0,0.00030098]
[1733937915594,0.65757741,100680.0,100670.0,0.00030098]
[1733937915809,0.52156635,100680.0,100670.0,0.00030098]
[1733937916653,0.38800101,100680.0,100670.0,0.00030098]
[1733937916888,0.39200101,100680.0,100670.0,0.00030098]
[1733937917091,0.39400101,100680.0,100670.0,0.00030098]
[1733937918783,0.49408658,100680.0,100670.0,0.00030098]
[1733937919001,0.39400101,100680.0,100670.0,0.00030098]
[1733937919228,0.54400101,100680.0,100670.0,0.00030098]
[1733937919466,0.67756635,100680.0,100670.0,0.00030098]
[1733937919675,0.32891735,100680.0,100670.0,0.00030098]
[1733937920090,0.19535201,100680.0,100670.0,0.07976798]
[1733937920534,0.10630845,100680.0,100670.0,0.00030098]
[1733937921845,0.44096851,100680.0,100670.0,0.00030098]
[1733937922103,0.53001207,100680.0,100670.0,0.00030098]
[1733937922314,0.39400101,100680.0,100670.0,0.00030098]
[1733937922967,0.84172816,100680.0,100670.0,0.00030098]
[1733937923182,0.99172816,100680.0,100670.0,0.00030098]
[1733937923590,1.12535226,100680.0,100670.0,0.00030098]
[1733937923833,1.14178692,100680.0,100670.0,0.00030098]
[1733937924218,1.27516272,100680.0,100670.0,0.00030098]
[1733937924473,1.14178692,100680.0,100670.0,0.00030098]
[1733937925342,1.27514384,100680.0,100670.0,0.00030098]
[1733937925572,1.14178692,100680.0,100670.0,0.00030098]
[1733937926193,1.00503004,100680.0,100670.0,0.00030098]
[1733937926398,1.22726216,100680.0,100670.0,0.00030098]
[1733937928044,1.508977,100680.0,100670.0,0.00030098]
[1733937928261,1.13318357,100680.0,100670.0,0.00030098]
[1733937928465,1.02017251,100680.0,100670.0,0.00030098]
[1733937928673,0.87017251,100680.0,100670.0,0.00030098]
[1733937928874,0.498668,100670.0,100660.0,0.01515003]
[1733937929085,0.67118178,100670.0,100660.0,0.01515003]
[1733937929293,0.52118178,100670.0,100660.0,0.01515003]
[1733937929707,0.92715858,100670.0,100660.0,0.01515003]
[1733937929914,0.83827645,100670.0,100660.0,0.01515003]
[1733937930123,0.83927645,100670.0,100660.0,0.015701]
[1733937932426,0.92815858,100670.0,100660.0,0.015701]
[1733937932641,0.83927645,100670.0,100660.0,0.015701]
[1733937934245,0.38885858,100670.0,100660.0,0.015701]
[1733937935614,0.67486964,100670.0,100660.0,0.015701]
[1733937935787,1.38116158,100670.0,100660.0,0.015701]
[1733937935986,1.36827945,100670.0,100660.0,0.015701]
[1733937937352,1.23492359,100670.0,100660.0,0.015701]
[1733937937580,1.36827945,100670.0,100660.0,0.015701]
[1733937938136,1.45712846,100670.0,100660.0,0.015701]
[1733937938358,1.45712108,100670.0,100660.0,0.015701]
[1733937938689,1.36827945,100670.0,100660.0,0.015701]
[1733937939329,1.45711361,100670.0,100660.0,0.015701]
[1733937939535,1.45682663,100670.0,100660.0,0.015701]
[1733937941040,1.5569122,100670.0,100660.0,0.00243553]
[1733937941262,1.38198141,100670.0,100660.0,0.00243553]
[1733937941705,1.35898141,100670.0,100660.0,0.00243553]
[1733937941921,1.07180178,100670.0,100660.0,0.00243553]
[1733937942167,0.38879682,100670.0,100660.0,0.00243553]
[1733937942369,0.10130845,100670.0,100660.0,0.00243553]
[1733937943008,0.10130845,100670.0,100660.0,0.08191053]
[1733937944018,0.10130845,100670.0,100660.0,0.00243553]
[1733937945826,0.29997645,100670.0,100660.0,0.00243553]
[1733937947972,0.10130845,100670.0,100660.0,0.00243553]
[1733937950372,0.19017207,100670.0,100660.0,0.00243553]
[1733937950811,0.10130845,100670.0,100660.0,0.16261053]
[1733937951029,0.5403,100670.0,100660.0,0.20791053]
[1733937951231,0.001,100670.0,100660.0,0.20791053]
[1733937951613,0.001,100670.0,100660.0,0.20711484]
[1733937951831,0.10130845,100670.0,100660.0,0.20711484]
[1733937952030,0.10030845,100670.0,100660.0,0.20711484]
[1733937952230,0.10130845,100670.0,100660.0,0.20711484]
[1733937952692,0.10130845,100670.0,100660.0,0.12763984]
[1733937952909,0.10130845,100670.0,100660.0,0.00163984]
[1733937953932,0.10030845,100670.0,100660.0,0.00163984]
[1733937954369,0.10030845,100670.0,100660.0,0.00263984]
[1733937954994,0.29897645,100670.0,100660.0,0.00263984]
[1733937955222,0.63960845,100670.0,100660.0,0.00263984]
[1733937956231,0.72847207,100670.0,100660.0,0.00263984]
[1733937957302,0.86176751,100670.0,100660.0,0.00263984]
[1733937958309,1.03949476,100670.0,100660.0,0.00263984]
[1733937959473,1.03949476,100670.0,100660.0,0.00155097]
[1733937959679,1.03949476,100670.0,100650.0,0.36703887]
[1733937959680,7.609e-05,100660.0,100650.0,0.28755987]
[1733937960948,0.10038454,100660.0,100650.0,0.12860187]
[1733937961186,0.86250686,100660.0,100650.0,0.00070187]
[1733937961393,1.23948514,100660.0,100650.0,0.00070187]
[1733937962039,1.23948514,100660.0,100650.0,0.00370187]
[1733937962247,1.46233407,100660.0,100650.0,0.00370187]
[1733937962476,1.37318935,100660.0,100650.0,0.00370187]
[1733937962678,1.46233266,100660.0,100650.0,0.00370187]
[1733937963100,1.26364466,100660.0,100650.0,0.00370187]
[1733937963315,1.17450135,100660.0,100650.0,0.00070187]
[1733937963525,1.37518935,100660.0,100650.0,0.00070187]
[1733937964163,1.24148515,100660.0,100650.0,0.00070187]
[1733937964371,0.70218515,100660.0,100650.0,0.00070187]
[1733937966937,0.50349715,100660.0,100650.0,0.00070187]
[1733937967165,0.32523345,100660.0,100650.0,0.15648487]
[1733937967374,0.00207609,100660.0,100650.0,0.69893487]
[1733937968029,7.609e-05,100660.0,100650.0,0.69893487]
[1733937969352,0.00107609,100660.0,100650.0,0.69893487]
[1733937970005,7.609e-05,100660.0,100650.0,0.69893487]
[1733937970224,7.609e-05,100660.0,100650.0,0.69993487]
[1733937970849,7.609e-05,100660.0,100650.0,0.70484202]
[1733937972932,0.10038454,100660.0,100650.0,0.70484202]
[1733937973752,0.10038454,100660.0,100650.0,0.50335902]
[1733937973953,0.189521,100660.0,100650.0,0.50335902]
[1733937974156,0.32323345,100660.0,100650.0,0.50335902]
[1733937974360,0.92303406,100660.0,100650.0,0.50335902]
[1733937974566,0.92303675,100660.0,100650.0,0.50335902]
[1733937974771,0.8338976,100660.0,100650.0,0.50335902]
[1733937974999,0.70018515,100660.0,100650.0,0.50335902]
[1733937975431,0.85018515,100660.0,100650.0,0.50235902]
[1733937975634,0.67191288,100660.0,100650.0,0.50235902]
[1733937975857,0.67291288,100660.0,100650.0,0.50235902]
[1733937976074,0.85119345,100660.0,100650.0,0.50235902]
[1733937976273,0.85019345,100660.0,100650.0,0.50235902]
[1733937976407,0.85119345,100660.0,100650.0,0.50235902]
[1733937978469,0.85119345,100660.0,100650.0,0.50335902]
[1733937978470,0.85619345,100660.0,100650.0,0.50335902]
[1733937978841,0.85619345,100660.0,100650.0,0.49845187]
[1733937979249,1.16520451,100660.0,100650.0,0.49845187]
[1733937979476,1.25433235,100660.0,100650.0,0.49845187]
[1733937979741,1.03149201,100660.0,100650.0,0.49845187]
[1733937979951,1.30992647,100660.0,100650.0,0.47700978]
[1733937980155,1.50313627,100660.0,100650.0,0.47700978]
[1733937980588,1.66712521,100660.0,100650.0,0.47700978]
[1733937980798,0.80049697,100660.0,100650.0,0.47700978]
[1733937981001,0.9451513,100660.0,100650.0,0.47700978]
[1733937981223,0.85602343,100660.0,100650.0,0.47700978]
[1733937981427,0.98966181,100660.0,100650.0,0.47700978]
[1733937982989,1.03586181,100660.0,100650.0,0.47700978]
[1733937983203,0.90222343,100660.0,100650.0,0.47700978]
[1733937985026,0.85602343,100660.0,100650.0,0.47700978]
[1733937987325,0.56107117,100660.0,100650.0,0.47700978]
[1733937987532,0.78380186,100660.0,100650.0,0.47700978]
[1733937987730,0.69471147,100660.0,100650.0,0.47700978]
[1733937988020,0.78380136,100660.0,100650.0,0.47700978]
[1733937988211,0.89339947,100660.0,100650.0,0.47700978]
[1733937988417,1.03231908,100660.0,100650.0,0.47700978]
[1733937988584,0.89867878,100660.0,100650.0,0.47700978]
[1733937988764,0.89348222,100660.0,100650.0,0.47700978]
[1733937989473,0.80204126,100660.0,100650.0,0.47700978]
[1733937989671,1.51218678,100660.0,100650.0,0.47700978]
[1733937989873,1.70530587,100660.0,100650.0,0.47700978]
[1733937990084,0.3,100650.0,100630.0,0.00070203]
[1733937990256,0.39395703,100640.0,100630.0,0.00070203]
[1733937990465,0.38813314,100640.0,100630.0,0.01050813]
[1733937990665,0.38813314,100640.0,100630.0,0.00070203]
[1733937990886,0.63673314,100640.0,100630.0,0.00070203]
[1733937991013,0.7727442,100640.0,100630.0,0.00070203]
[1733937991216,0.90638924,100640.0,100630.0,0.00070203]
[1733937991434,0.77037818,100640.0,100630.0,0.00370203]
[1733937991647,0.77033533,100640.0,100630.0,0.00370203]
[1733937991988,0.77033533,100640.0,100630.0,0.00170203]
[1733937992272,0.77533533,100640.0,100630.0,0.00270203]
[1733937992475,0.77533533,100640.0,100630.0,0.00170203]
[1733937992706,0.397518,100630.0,100610.0,0.0887268]
[1733937992890,0.10030845,100620.0,100610.0,0.0887268]
[1733937993341,0.10030845,100620.0,100610.0,0.07875]
[1733937993963,0.10030845,100620.0,100610.0,0.15842835]
[1733937994592,0.10030845,100620.0,100610.0,0.16042835]
[1733937995003,0.10030845,100620.0,100610.0,0.16142835]
[1733937995839,0.10030845,100620.0,100610.0,0.16042835]
[1733937996274,0.10030845,100620.0,100610.0,0.00561435]
[1733937997027,0.28610066,100620.0,100610.0,0.00561435]
[1733937997270,0.29907545,100620.0,100610.0,0.00561435]
[1733937997475,0.63960845,100620.0,100610.0,0.16062835]
[1733937998342,0.67384063,100620.0,100610.0,0.16062835]
[1733937998545,0.57353218,100620.0,100610.0,0.16062835]
[1733937999166,0.57353218,100620.0,100610.0,0.35622835]
[1733937999400,0.0112515,100620.0,100610.0,0.35622835]
[1733938000083,0.0112515,100620.0,100610.0,0.95316835]
[1733938000710,0.0112515,100620.0,100610.0,0.95116835]
[1733938000912,0.04524845,100640.0,100630.0,0.079499]
[1733938001127,0.1455569,100640.0,100630.0,0.576369]
[1733938002021,0.1795561,100640.0,100630.0,0.576369]
[1733938002874,0.07625069,100640.0,100630.0,0.702169]
[1733938003517,0.07825069,100640.0,100630.0,0.702169]
[1733938006605,0.17855914,100640.0,100630.0,0.702169]
[1733938009239,0.14455994,100640.0,100630.0,0.702169]
[1733938009874,0.14455994,100640.0,100630.0,0.49687]
[1733938010093,0.14455994,100640.0,100630.0,0.576369]
[1733938012356,0.68385994,100640.0,100630.0,0.576369]
[1733938012800,0.71859734,100640.0,100630.0,0.576369]
[1733938014121,0.61828889,100640.0,100630.0,0.622269]
[1733938014755,0.61828889,100640.0,100630.0,0.702469]
[1733938015391,0.07898889,100640.0,100630.0,0.702469]
[1733938015809,0.17929734,100640.0,100630.0,0.702469]
[1733938016016,0.17929734,100640.0,100630.0,0.576369]
[1733938016840,0.37802534,100640.0,100630.0,0.49687]
[1733938017481,1.00422776,100640.0,100630.0,0.50120036]
[1733938017693,1.00422776,100640.0,100630.0,0.49687]
[1733938017947,1.00170374,100640.0,100630.0,0.50120036]
[1733938018151,1.17968647,100640.0,100630.0,0.50120036]
[1733938018807,1.00170374,100640.0,100630.0,0.50120036]
[1733938019035,0.62997574,100640.0,100630.0,0.50120036]
[1733938019243,0.82870374,100640.0,100630.0,0.50120036]
[1733938019459,0.6952167,100640.0,100630.0,0.50120036]
[1733938019671,0.82870374,100640.0,100630.0,0.50120036]
[1733938019913,1.00668647,100640.0,100630.0,0.50120036]
[1733938020138,1.22916488,100640.0,100630.0,0.50120036]
[1733938021616,1.22980732,100640.0,100630.0,0.50120036]
[1733938023328,1.00709947,100640.0,100630.0,0.50120036]
[1733938023799,0.40200519,100640.0,100630.0,0.50120036]
[1733938024010,0.26838048,100640.0,100630.0,0.50120036]
[1733938024226,0.17929734,100640.0,100630.0,0.58069936]
[1733938024426,0.71859734,100640.0,100630.0,0.58069936]
[1733938024844,0.07898889,100640.0,100630.0,0.63039936]
[1733938025064,0.04425149,100640.0,100630.0,0.854369]
[1733938025493,0.04425149,100640.0,100630.0,0.9432037]
[1733938026109,0.04425149,100640.0,100630.0,0.9430866]
[1733938026335,0.04425149,100640.0,100630.0,0.854369]
[1733938026546,0.04225149,100640.0,100630.0,0.854369]
[1733938026972,0.04325149,100640.0,100630.0,0.854369]
[1733938027177,0.04225149,100640.0,100630.0,0.854369]
[1733938027390,0.04225149,100640.0,100630.0,0.857369]
[1733938027635,4.9e-07,100640.0,100630.0,1.57947145]
[1733938027840,4.9e-07,100640.0,100630.0,1.75690665]
[1733938028042,4.9e-07,100640.0,100630.0,1.88998305]
[1733938028255,4.9e-07,100640.0,100630.0,1.88983543]
[1733938028434,4.9e-07,100640.0,100630.0,2.02806785]
[1733938028664,4.9e-07,100640.0,100630.0,2.03106785]
[1733938028875,4.9e-07,100640.0,100630.0,2.03076709]
[1733938029125,0.01132759,100660.0,100650.0,0.1]
[1733938029333,0.01132759,100660.0,100650.0,0.47740179]
[1733938029541,0.01132759,100660.0,100650.0,0.55589145]
[1733938029721,0.01132759,100660.0,100650.0,1.05266145]
[1733938029954,0.01132759,100660.0,100650.0,1.20266145]
[1733938030191,0.01132759,100660.0,100650.0,1.29121978]
[1733938030436,0.01187788,100660.0,100650.0,1.29621978]
[1733938030640,0.01187788,100660.0,100650.0,1.20566145]
[1733938030843,0.53576918,100700.0,100650.0,1.05597845]
[1733938031061,0.10030845,100690.0,100660.0,0.311275]
[1733938031300,0.10030845,100690.0,100680.0,0.079453]
[1733938031724,0.10030845,100690.0,100680.0,0.576073]
[1733938032769,0.10830845,100690.0,100680.0,0.577073]
[1733938036347,0.137705,100690.0,100680.0,0.577073]
[1733938036551,0.63791185,100690.0,100680.0,0.577073]
[1733938037604,0.63791185,100690.0,100680.0,0.653773]
[1733938037994,0.63591185,100690.0,100680.0,0.653773]
[1733938038546,0.03739655,100690.0,100680.0,0.653773]
[1733938038735,0.03539655,100690.0,100680.0,0.653773]
[1733938039179,0.02939655,100690.0,100680.0,0.652773]
[1733938039404,0.02939655,100690.0,100680.0,0.653773]
[1733938039405,0.03539655,100690.0,100680.0,0.653773]
[1733938039643,0.006,100690.0,100680.0,0.653773]
[1733938039886,0.53005705,100700.0,100690.0,0.079451]
[1733938040114,0.6303655,100700.0,100690.0,0.576021]
[1733938040695,0.8289745,100700.0,100690.0,0.49657]
[1733938041039,0.82913957,100700.0,100690.0,0.49657]
[1733938041161,0.83113957,100700.0,100690.0,0.49657]
[1733938041366,0.83113957,100700.0,100690.0,0.49487243]
[1733938041823,1.13153957,100700.0,100690.0,0.49487243]
[1733938042042,1.13753957,100700.0,100690.0,0.49587243]
[1733938043074,1.1478565,100700.0,100690.0,0.49587243]
[1733938043261,0.93366071,100700.0,100690.0,0.42653312]
[1733938043462,1.02229406,100700.0,100690.0,0.36382482]
[1733938043665,0.348649,100680.0,100670.0,0.0099652]
[1733938043874,0.527,100660.0,100640.0,0.079484]
[1733938044072,0.10030845,100650.0,100630.0,0.203291]
[1733938044282,0.10030845,100650.0,100630.0,0.7421006]
[1733938044490,0.10030845,100650.0,100630.0,0.7452936]
[1733938044943,0.10030845,100650.0,100630.0,0.6658006]
[1733938045150,0.29901645,100650.0,100630.0,0.66635689]
[1733938045381,0.30001645,100650.0,100630.0,0.66635689]
[1733938045536,0.10130845,100650.0,100630.0,0.66635689]
[1733938045735,0.10130845,100650.0,100630.0,0.74585189]
[1733938045937,0.10130845,100650.0,100630.0,0.66735289]
[1733938046333,0.10130845,100650.0,100630.0,0.74684689]
[1733938046945,0.10130845,100650.0,100630.0,0.66735189]
[1733938047332,0.10130845,100650.0,100630.0,0.74684689]
[1733938048526,0.62830845,100650.0,100630.0,0.74684689]
[1733938050874,0.62830845,100650.0,100630.0,0.66735189]
[1733938051082,0.62830845,100650.0,100640.0,0.079491]
[1733938051573,0.001,100650.0,100640.0,0.154491]
[1733938051779,0.001,100650.0,100640.0,0.30548456]
[1733938051982,0.001,100650.0,100640.0,0.304491]
[1733938052183,0.527,100670.0,100650.0,0.07948]
[1733938052386,0.10030845,100660.0,100650.0,0.158959]
[1733938054539,0.10530845,100660.0,100650.0,0.158959]
[1733938055989,0.10730845,100660.0,100650.0,0.158959]
[1733938059861,0.10730845,100660.0,100650.0,0.16554303]
[1733938060295,0.10730845,100660.0,100650.0,0.00658403]
[1733938060506,0.13030845,100660.0,100650.0,0.00658403]
[1733938060723,0.40399645,100660.0,100650.0,0.00658403]
[1733938061358,0.60269845,100660.0,100630.0,0.86135429]
[1733938061554,0.60269845,100660.0,100650.0,0.00658403]
[1733938061801,0.80139945,100660.0,100630.0,0.86135429]
[1733938062144,0.60069745,100660.0,100650.0,0.00658403]
[1733938062338,0.79439745,100660.0,100640.0,0.00664473]
[1733938062477,0.84439745,100660.0,100630.0,0.66634119]
[1733938062684,0.84939745,100660.0,100630.0,0.66634119]
[1733938062859,0.84739745,100660.0,100640.0,0.00442982]
[1733938063294,0.84939745,100660.0,100640.0,0.00442982]
[1733938063495,1.37639745,100660.0,100640.0,0.00442982]
[1733938064166,1.13502751,100650.0,100640.0,0.00442982]
[1733938064343,0.99901645,100650.0,100640.0,0.00442982]
[1733938064723,0.65030845,100650.0,100640.0,0.50124982]
[1733938065126,0.62730845,100650.0,100640.0,0.50124982]
[1733938065688,0.62830845,100650.0,100640.0,0.58074082]
[1733938066151,0.10130845,100650.0,100640.0,0.58074082]
[1733938066360,0.001,100650.0,100640.0,0.58074082]
[1733938067544,0.02966441,100670.0,100660.0,0.079475]
[1733938067775,0.12997286,100670.0,100660.0,0.079475]
[1733938067993,0.10030845,100670.0,100660.0,0.079475]
[1733938068297,0.10030845,100670.0,100660.0,0.576195]
[1733938068551,0.02977978,100680.0,100670.0,0.079467]
[1733938068785,0.13008823,100680.0,100670.0,0.079467]
[1733938070022,0.13008823,100680.0,100660.0,0.655661]
[1733938070439,0.10030845,100670.0,100660.0,0.66215311]
[1733938070583,0.10130845,100670.0,100660.0,0.66215311]
[1733938070789,0.10030845,100670.0,100660.0,0.65566]
[1733938072006,0.10130845,100670.0,100660.0,0.65566]
[1733938072223,0.10130845,100670.0,100660.0,0.49672]
[1733938072418,0.10130845,100670.0,100660.0,0.576195]
[1733938080374,0.10130845,100670.0,100660.0,0.58065327]
[1733938081893,0.001,100670.0,100660.0,0.58065327]
[1733938082590,0.001,100670.0,100660.0,0.62315921]
[1733938083484,0.02977978,100680.0,100670.0,0.079467]
[1733938083683,0.13008823,100680.0,100670.0,0.079467]
[1733938084105,0.13008823,100680.0,100670.0,0.08392527]
[1733938084305,0.13008823,100680.0,100670.0,0.00445827]
[1733938084719,0.21268823,100680.0,100670.0,0.00445827]
[1733938084928,0.21268823,100680.0,100670.0,0.07399227]
[1733938085326,0.21268823,100680.0,100670.0,0.00445827]
[1733938085995,0.21468823,100680.0,100670.0,0.00445827]
[1733938086613,0.21968823,100680.0,100670.0,0.00445827]
[1733938087039,0.21968823,100680.0,100670.0,0.07399227]
[1733938087257,0.21968823,100680.0,100670.0,0.00445827]
[1733938087898,0.92284829,100680.0,100670.0,0.00445827]
[1733938088112,0.221668,100670.0,100660.0,0.46312594]
[1733938088329,0.40487645,100670.0,100660.0,0.46312594]
[1733938088575,1.17082481,100670.0,100660.0,0.46312594]
[1733938088786,1.30424736,100670.0,100660.0,0.46312594]
[1733938089205,1.45424736,100670.0,100660.0,0.46312594]
[1733938089414,1.59025842,100670.0,100660.0,0.46312594]
[1733938089622,1.76815515,100670.0,100660.0,0.46312594]
[1733938090078,1.9905602,100670.0,100660.0,0.44167102]
[1733938090283,1.9015777,100670.0,100660.0,0.44167102]
[1733938090698,1.9025777,100670.0,100660.0,0.44167102]
[1733938090901,1.9065777,100670.0,100660.0,0.44167102]
[1733938091114,1.9055777,100670.0,100660.0,0.44167102]
[1733938091330,1.9145777,100670.0,100660.0,0.40467102]
[1733938092187,2.01458348,100670.0,100660.0,0.39110925]
[1733938092420,1.9641777,100670.0,100660.0,0.3174156]
[1733938092624,1.83075515,100670.0,100660.0,0.3174156]
[1733938093653,1.30375515,100670.0,100660.0,0.18397754]
[1733938093874,1.30375515,100670.0,100660.0,0.08555408]
[1733938094723,1.15375515,100670.0,100660.0,0.08555408]
[1733938094967,0.023,100630.0,100610.0,0.4125805]
[1733938095183,0.10030845,100620.0,100610.0,0.34355579]
[1733938095635,0.10030845,100620.0,100610.0,0.34257129]
[1733938095845,0.023,100630.0,100610.0,0.41214229]
[1733938096050,0.10030845,100630.0,100620.0,0.069568]
[1733938097365,0.10130845,100630.0,100620.0,0.069568]
[1733938097574,0.10030845,100630.0,100620.0,0.069568]
[1733938097786,0.10130845,100630.0,100620.0,0.069568]
[1733938098400,0.10230845,100630.0,100620.0,0.075568]
[1733938098817,0.10130845,100630.0,100620.0,0.069568]
[1733938099194,0.10130845,100630.0,100620.0,0.073568]
[1733938099618,0.13859149,100630.0,100620.0,0.073568]
[1733938103585,0.13859149,100630.0,100620.0,0.004]
[1733938103807,0.16159149,100630.0,100620.0,0.004]
[1733938104017,0.13859149,100630.0,100620.0,0.073568]
[1733938104465,0.16159149,100630.0,100620.0,0.073568]
[1733938107185,0.16159149,100630.0,100620.0,0.004]
[1733938107597,0.24249149,100630.0,100620.0,0.004]
[1733938107800,0.44123849,100630.0,100620.0,0.004]
[1733938108007,1.10424955,100630.0,100620.0,0.004]
[1733938108222,0.96823849,100630.0,100620.0,0.004]
[1733938108644,0.76949149,100630.0,100620.0,0.004]
[1733938108860,0.96823849,100630.0,100620.0,0.004]
[1733938111822,0.76949149,100630.0,100620.0,0.004]
[1733938112252,0.96823849,100630.0,100620.0,0.004]
[1733938114307,0.89115149,100630.0,100620.0,0.004]
[1733938116108,0.69606255,100630.0,100620.0,0.004]
[1733938116331,0.71566198,100630.0,100620.0,0.004]
[1733938116937,0.023,100620.0,100610.0,0.00100029]
[1733938117099,0.12330845,100620.0,100610.0,0.00100029]
[1733938117295,0.32207545,100620.0,100610.0,0.00100029]
[1733938117994,0.47307545,100620.0,100610.0,0.00100029]
[1733938118195,0.60908651,100620.0,100610.0,0.00400029]
[1733938118310,0.75908651,100620.0,100610.0,0.00400029]
[1733938119123,0.83448651,100620.0,100610.0,0.00400029]
[1733938119375,0.83448651,100620.0,100610.0,0.00100029]
[1733938120147,0.83948651,100620.0,100610.0,0.00100029]
[1733938126189,0.55347545,100620.0,100610.0,0.00100029]
[1733938126410,0.27930845,100620.0,100610.0,0.00100029]
[1733938126653,0.63330845,100620.0,100610.0,0.07057529]
[1733938127266,0.63330845,100620.0,100610.0,0.00100029]
[1733938127967,0.63330845,100620.0,100610.0,0.07057529]
[1733938128345,0.65630845,100620.0,100610.0,0.07057529]
[1733938128913,0.65030845,100620.0,100610.0,0.07057529]
[1733938129144,0.65130845,100620.0,100610.0,0.07057529]
[1733938129348,0.65230845,100620.0,100610.0,0.07057529]
[1733938129558,0.12430845,100620.0,100610.0,0.07057529]
[1733938129758,0.12830845,100620.0,100610.0,0.07057529]
[1733938130135,0.12930845,100620.0,100610.0,0.07057529]
[1733938136644,0.12930845,100620.0,100610.0,0.00100029]
[1733938138840,0.12930845,100620.0,100610.0,0.07057529]
[1733938139224,0.12930845,100620.0,100610.0,0.00100029]
[1733938139411,0.76859534,100620.0,100610.0,0.00100029]
[1733938139612,0.63258428,100620.0,100610.0,0.00100029]
[1733938139816,0.81075134,100620.0,100610.0,0.00100029]
[1733938140025,0.61198434,100620.0,100610.0,0.00100029]
[1733938140416,0.81075134,100620.0,100610.0,0.00100029]
[1733938141596,1.33775134,100620.0,100610.0,0.00100029]
[1733938142243,1.74297123,100620.0,100610.0,0.00100029]
[1733938142648,1.6538877,100620.0,100610.0,0.00100029]
[1733938143090,1.51787664,100620.0,100610.0,0.00100029]
[1733938143297,1.31610837,100620.0,100610.0,0.00100029]
[1733938143495,1.2768877,100620.0,100610.0,0.00100029]
[1733938143700,1.14087664,100620.0,100610.0,0.00100029]
[1733938144144,1.00725134,100620.0,100610.0,0.00100029]
[1733938144596,1.1432624,100620.0,100610.0,0.00100029]
[1733938145593,1.00725134,100620.0,100610.0,0.00100029]
[1733938145876,0.85725134,100620.0,100610.0,0.00100029]
[1733938146094,0.32914323,100620.0,100610.0,0.00100029]
[1733938146236,0.19544225,100620.0,100610.0,0.00100029]
[1733938146412,0.10630845,100620.0,100610.0,0.00100029]
[1733938146619,0.19544225,100620.0,100610.0,0.00100029]
[1733938147212,0.39420925,100620.0,100610.0,0.00100029]
[1733938147414,0.41720925,100620.0,100610.0,0.00100029]
[1733938148470,0.55091023,100620.0,100610.0,0.00100029]
[1733938149684,0.72907729,100620.0,100610.0,0.00100029]
[1733938150167,0.72932148,100620.0,100610.0,0.00100029]
[1733938150373,0.95223595,100620.0,100610.0,0.00100029]
[1733938150577,1.47923595,100620.0,100610.0,0.00100029]
[1733938153721,1.47949445,100620.0,100610.0,0.00100029]
[1733938153922,1.25648767,100620.0,100610.0,0.00100029]
[1733938154746,1.40650342,100620.0,100610.0,0.00100029]
[1733938156441,1.25650342,100620.0,100610.0,0.00100029]
[1733938156647,0.72950342,100620.0,100610.0,0.00100029]
[1733938156887,0.86331057,100620.0,100610.0,0.00100029]
[1733938157727,0.95251717,100620.0,100610.0,0.00100029]
[1733938158133,0.95251729,100620.0,100610.0,0.00100029]
[1733938158338,0.86331057,100620.0,100610.0,0.00100029]
[1733938158998,0.86331057,100620.0,100610.0,0.07680029]
[1733938159430,0.95252109,100620.0,100610.0,0.07680029]
[1733938159657,1.47952109,100620.0,100610.0,0.07680029]
[1733938159865,0.85632612,100620.0,100610.0,0.14637529]
[1733938160072,0.72251897,100620.0,100610.0,0.07680029]
[1733938160293,0.92128597,100620.0,100610.0,0.00100029]
[1733938160543,1.45652109,100620.0,100610.0,0.00100029]
[1733938161161,1.39031057,100620.0,100610.0,0.00100029]
[1733938161384,1.38931057,100620.0,100610.0,0.00100029]
[1733938161590,1.38531057,100620.0,100610.0,0.00100029]
[1733938162022,1.38631057,100620.0,100610.0,0.00100029]
[1733938162241,1.25150342,100620.0,100610.0,0.00100029]
[1733938162443,1.70240558,100620.0,100610.0,0.00200029]
[1733938162641,1.17540558,100620.0,100610.0,0.00200029]
[1733938162851,1.15170515,100620.0,100610.0,0.00200029]
[1733938163265,1.15070515,100620.0,100610.0,0.00100029]
[1733938163471,1.30570515,100620.0,100610.0,0.00100029]
[1733938163691,1.30578044,100620.0,100610.0,0.00100029]
[1733938164557,1.60293611,100620.0,100610.0,0.00100029]
[1733938164958,1.80037345,100620.0,100610.0,0.00100029]
[1733938165156,1.75145902,100620.0,100610.0,0.00100029]
[1733938165996,1.78738451,100620.0,100610.0,0.00100029]
[1733938166195,0.221807,100600.0,100590.0,0.001383]
[1733938166375,1.06481329,100600.0,100590.0,0.00154735]
[1733938166577,0.72356238,100600.0,100590.0,0.00056435]
[1733938167186,0.87356238,100600.0,100590.0,0.00056435]